Cogmind - Beta 16 @@@ ROGUE MODE // 2026.01.07 @ 02:13:54 Player: Stibat Result: Destroyed by G-47 Trooper with Particle Gun Performance ------------- Evolutions (0) 0 Regions Visited (1) 200 Robots Destroyed (12) 60 Value Destroyed (188) 188 Prototype IDs (2) 40 Alien Tech Used (0) 0 Bonus (0) 0 TOTAL SCORE: 488 Bonus ------- None Cogmind --------- Core Integrity 0/250 Matter 281/300 Energy 100/100 System Corruption 0% Temperature Cool (15) Movement Core (100) Ox1 Location -10/Materials Parts ------- > --- POWER (1) -------- (None) > --- PROPULSION (2) --- (None) > --- UTILITY (2) ------ Small Storage Unit > --- WEAPON (2) ------- (None) > --- INVENTORY (8) ---- Signal Interpreter Datajack Peak State ------------ > --- POWER ------------ Ion Engine > --- PROPULSION ------- Wheel Wheel > --- UTILITY ---------- Small Storage Unit > --- WEAPON ----------- EM Pulse Gun Small Laser > --- INVENTORY -------- Ion Engine Aluminum Leg Aluminum Leg Light Assault Rifle [Rating: 6] Favorites ----------- Power Ion Engine Engine Ion Engine Propulsion Aluminum Leg Leg Aluminum Leg Wheel Wheel Utility Small Storage Unit Storage Small Storage Unit Weapon Light Assault Rifle Energy Gun Small Laser Ballistic Gun Light Assault Rifle Build | -11 -10 ------- Run | Yrd Mat Slots Evolved . | . . Power . | . . Propulsion . | . . Utility . | . . Weapon . | . . Parts Attached 14 | 8 6 Power 3 | 1 2 Engine 3 | 1 2 Core . | . . Reactor . | . . Propulsion 5 | 4 1 Treads . | . . Leg 3 | 2 1 Wheel 2 | 2 . Hover . | . . Flight . | . . Utility 1 | 1 . Device . | . . Storage 1 | 1 . Processor . | . . Hackware . | . . Protection . | . . Artifact . | . . Weapon 5 | 2 3 Energy Gun 2 | 2 . Energy Cannon . | . . Ballistic Gun 3 | . 3 Ballistic Cannon . | . . Launcher . | . . Special Weapon . | . . Impact Weapon . | . . Slashing Weapon . | . . Piercing Weapon . | . . Special Melee Weapon . | . . Unidentified Prototypes . | . . Parts Lost 3 | . 3 Power . | . . Propulsion 1 | . 1 Utility . | . . Weapon 2 | . 2 Highest Loss Streak 3 | . 3 To Critical Strikes . | . . Average Backups 4 | 2 4 Power . | . . Propulsion . | . . Utility . | . . Weapon 1 | . 1 Tool/Special . | . . Unused Backups 5 | 1 4 Power . | . . Propulsion 1 | . 1 Utility 3 | 1 2 Weapon . | . . Tool/Special 1 | . 1 Average Slot Usage (%) 77 | . 77 Engine 12 | . 12 Leg 24 | . 24 Storage 14 | . 14 Energy Gun 6 | . 6 Ballistic Gun 19 | . 19 Peak Build Rating 6 | 6 6 Average Rating 5 | 4 5 On Entrance 3 | . 6 Avg Prop Armor Cover (%) . | . . Naked Turns . | . . Heaviest Build 13 | 13 13 Greatest Support 20 | 20 20 Greatest Overweight (x) 2 | 1 2 Average Overweight (x) . | . . Largest Inventory Capacity 8 | 8 8 Average Capacity 7 | 5 8 Most Carried 7 | 5 7 Average Carried 4 | 2 4 Final Capacity 8 | 8 8 Final Carried 2 | 2 2 Class Distribution -------------------- 100% | Mutant Dominant Class ---------------- Mutant | -10/Materials Resources | -11 -10 ----------- Run | Yrd Mat Matter Collected 395 | 228 167 Remotely . | . . Salvage Created 319 | 81 238 Parts 29 | 1 28 Haulers Intercepted . | . . Recyclers Shooed 1 | . 1 Parts Field Recycled . | . . Retrieved Matter . | . . Parts Self-Destructed . | . . Prevented . | . . Parts Restored . | . . Kills | -11 -10 ------- Run | Yrd Mat Combat Hostiles Destroyed 11 | . 11 Guns 11 | . 11 Classes Destroyed 3 | 1 2 Recycler 1 | 1 . Swarmer 8 | . 8 Grunt 3 | . 3 Best Kill Streak 3 | 1 3 Combat Bots Only 3 | . 3 Max Kills in Single Turn 1 | 1 1 Gunslinging . | . . Exploded . | . . Melee . | . . Uniques/NPCs Destroyed . | . . Combat | -11 -10 -------- Run | Yrd Mat Hostile Shots Fired 89 | . 89 Missed 30 | . 30 Hits 59 | . 59 Projectile 59 | . 59 Critical Strikes 1 | . 1 Damage Taken 637 | . 637 Core 258 | . 258 Absorbed by Shields . | . . Core Remaining (%) 100 | 100 . Volleys Fired 39 | 6 33 Largest 2 | 2 2 Hottest 80 | 80 80 Shots Fired 78 | 12 66 Gun 78 | 12 66 Cannon . | . . Launcher . | . . Special . | . . Kinetic 49 | . 49 Thermal 19 | 6 13 Explosive . | . . Electromagnetic 10 | 6 4 Robot Hit Streak 11 | 8 11 Robot Miss Streak 4 | 1 4 Penetration Max . | . . Secondary Targets 2 | . 2 Max Gunslinging Chain 1 | . 1 Shots Hit Robots 50 | 10 40 Core Hits 19 | 2 17 Critical Kills . | . . Critical Parts Destroyed . | . . Critical Strikes . | . . Melee Attacks . | . . Impact . | . . Slashing . | . . Piercing . | . . Sneak Attacks . | . . Combat Hostiles . | . . Follow-up Attacks . | . . Damage Inflicted 477 | 116 361 Guns 475 | 116 359 Cannons . | . . Explosions . | . . Melee . | . . Ramming 2 | . 2 Kinetic 212 | . 212 Thermal 150 | 55 95 Explosive . | . . Electromagnetic 113 | 61 52 Impact . | . . Slashing . | . . Piercing . | . . Highest Corruption . | . . Average Corruption . | . . Corruption Purged . | . . Corruption Blocked . | . . Overload Shots . | . . Overflow Damage . | . . Projectiles . | . . Explosions . | . . Melee . | . . Knockbacks . | . . Impact . | . . Kinetic . | . . Secondary . | . . Self-Inflicted Damage . | . . Shots . | . . Rammed 1 | 1 . Targets Rammed 2 | 1 1 Kicked 1 | . 1 Crushed . | . . Highest Temperature 88 | 88 40 Average Temperature 25 | 48 13 Received Heat Transfer 204 | . 204 Siege Activations . | . . Martial Activations . | . . Shielding Activations . | . . Robots Disrupted . | . . Combat Hostiles . | . . Robots Corrupted . | . . Combat Hostiles . | . . Parts Fried 1 | 1 . Impact Corruptions . | . . Robots Melted . | . . Combat Hostiles . | . . Parts Melted . | . . Heat Transferred 350 | 125 225 Parts Sabotaged . | . . Parts Stolen . | . . Parts Stripped . | . . Power Chain Reactions . | . . Alert | -11 -10 ------- Run | Yrd Mat Maximum Alert Level . | . . Low Security (%) 100 | 100 100 Level 1 . | . . Level 2 . | . . Level 3 . | . . Level 4 . | . . Level 5 . | . . High Security . | . . Max Security . | . . Peak Influence 88 | 5 88 Initial . | . . Average 22 | . 25 Influence Increases 305 | 5 300 Destroy 0b10 Robot/C 220 | . 220 Destroy 0b10 Robot/NC 5 | 5 . Destroy Leader 30 | . 30 Successful Hack 20 | . 20 Lose Combat Pursuer 30 | . 30 Influence Decreases 287 | 5 282 Time Decay 257 | 5 252 Lost Part 30 | . 30 Squads Dispatched 2 | . 2 Investigation . | . . Extermination . | . . Reinforcement 2 | . 2 Assault . | . . Garrison . | . . Intercept . | . . Searches Triggered . | . . Construction Impeded . | . . Haulers Reinforced . | . . Active Scanning Responses . | . . Cargo Convoy Interrupts . | . . Stealth | -11 -10 --------- Run | Yrd Mat Distress Signals . | . . Communications Jammed . | . . Distress Signals . | . . Times Spotted 20 | . 20 Peak Tracking Total 5 | . 5 Tactical Retreats 1 | . 1 Traps | -11 -10 ------- Run | Yrd Mat Traps Triggered 5 | . 5 Indirectly . | . . Trap Hack Attempts . | . . Triggered . | . . Disarmed . | . . Reprogrammed . | . . Reused . | . . Traps Extracted . | . . Installed . | . . Triggered . | . . Machines | -11 -10 ---------- Run | Yrd Mat Machines Disabled . | . . Max in Single Turn . | . . Machines Repaired . | . . Machines Dismantled . | . . Machines Sabotaged . | . . Overloaded Fab Kills . | . . Hacking | -11 -10 --------- Run | Yrd Mat Machines Accessed 4 | . 4 Terminals 4 | . 4 Fabricators . | . . Repair Stations . | . . Recycling Units . | . . Scanalyzers . | . . Garrison Access . | . . Total Hacks 4 | . 4 Successful 4 | . 4 Failed . | . . Catastrophic . | . . Database Lockouts . | . . Manual . | . . Terminals 4 | . 4 Fabricators . | . . Repair Stations . | . . Recycling Units . | . . Scanalyzers . | . . Garrison Access . | . . Terminal Hacks 4 | . 4 Prototype ID Bank 1 | . 1 Branch Access Points 1 | . 1 Alert Level 1 | . 1 Locate Traps 1 | . 1 Fabricator Hacks . | . . Repair Station Hacks . | . . Recycling Unit Hacks . | . . Scanalyzer . | . . Garrison Access Hacks . | . . Unauthorized Hacks . | . . Terminals . | . . Fabricators . | . . Repair Stations . | . . Recycling Units . | . . Scanalyzers . | . . Garrison Access . | . . Data Cores Recovered . | . . Used . | . . Hacking Detections 1 | . 1 Full Trace Events . | . . Feedback Events . | . . Feedback Blocked . | . . Robot Schematics Acquired . | . . Robots Built . | . . Authchips . | . . Time . | . . Total Robot Build Rating . | . . Part Schematics Acquired . | . . Parts Built . | . . Authchips . | . . Time . | . . Total Part Build Rating . | . . Part Studies Acquired . | . . Parts Repaired . | . . Time . | . . Parts Recycled . | . . Recycled Matter . | . . Retrieved Matter . | . . Retrieved Components . | . . Parts Scanalyzed . | . . Part Schematics Acquired . | . . Parts Damaged . | . . Bothacking | -11 -10 ------------ Run | Yrd Mat Used RIF Installer . | . . Robots Hacked . | . . Non-combat . | . . Combat . | . . Robot Hacks Applied . | . . Relay Couplers Released . | . . Fabnet Peak Effective % . | . . Robots Rewired . | . . Allies Hacked . | . . Hacks Repelled . | . . Allies | -11 -10 -------- Run | Yrd Mat Total Allies . | . . Largest Group . | . . Highest-Rated Group . | . . Highest-Rated Ally . | . . Total Orders . | . . Ally Attacks . | . . Total Damage . | . . Kills . | . . Allies Corrupted . | . . Allies Melted . | . . Intel | -11 -10 ------- Run | Yrd Mat Active Infowar (turns) . | . . Robot Analysis Total . | . . Derelict Logs Recovered . | . . Drone Launches . | . . Drone Recoveries . | . . Exploration | -11 -10 ------------- Run | Yrd Mat Turns Passed 941 | 121 820 Spaces Moved 632 | 96 536 Core 43 | 7 36 Treads . | . . Legs 512 | 12 500 Wheels 77 | 77 . Hover . | . . Flight . | . . Fastest Speed 50 | 50 100 Average Speed 113 | 82 119 Slowest Speed 190 | 120 190 Overloaded Moves . | . . Propulsion Burnouts . | . . Robots Hopped . | . . Potential Cave-ins . | . . Cave-ins Triggered . | . . Exploration Rate (%) 47 | 4 91 Regions Visited 1 Branch Regions . Pre-discovered Areas . | . . Known Exits Taken . | . . Unknown Exits Taken 1 | 1 . Scrap Searched . | . . Spaces Dug . | . . Terrain Destroyed . | . . Melee . | . . Projectile . | . . AOE . | . . Terrain Rammed . | . . Walls Destroyed . | . . Machines Disabled . | . . Actions | -11 -10 --------- Run | Yrd Mat Total 788 | 128 660 Wait 67 | . 67 Move 631 | 95 536 Hop . | . . Pick Up 22 | 12 10 Fast Attach . | . . Attach 16 | 8 8 Detach 2 | 2 . Swap 3 | . 3 Drop 6 | 4 2 Fire 39 | 6 33 Melee . | . . Ram 1 | 1 . Kick 1 | . 1 Crush . | . . Escape Stasis . | . . Rewire . | . . Trap . | . . Miscellaneous . | . . Route ------- -11/Scrapyard -10/Materials (discovered 4 exits: [*Mat x3] / Min) History --------- Turn | Location | Event 5 | -11/Scrapyard | Discovered new exit (range 15) 122 | -11/Scrapyard | Entered Materials 215 | -10/Materials | Discovered new exit (range 8) 301 | -10/Materials | Build established: Mutant 474 | -10/Materials | Identified exit to Mines 627 | -10/Materials | Discovered new exit (range 5) 820 | -10/Materials | Discovered new exit (range 6) 918 | -10/Materials | Core integrity fell below 50% 939 | -10/Materials | Core integrity fell below 20% 942 | -10/Materials | Destroyed by G-47 Trooper with Particle Gun Last Messages --------------- the floor. Ion Engine severed. Aluminum Leg severed. Triggered Blade Trap. Massive razor-sharp blades shoot up from within the floor. Lgt. Assault Rifle severed. S-10 Pest destroyed. Switching to secondary target: S-10 Pest. S-10 Pest destroyed. K-01 Serf collects debris. G-34 Mercenary destroyed. K-01 Serf collects debris. Aluminum Leg destroyed. EM Pulse Gun destroyed. K-01 Serf collects debris. S-10 Pest destroyed. K-01 Serf collects debris. Sml. Laser destroyed. K-01 Serf collects debris. Map ----- +----------------------------------------------------+ | ????????## ##????# # #? | | ?????????# #######+##########? | | ?????????# # #????????? | | ?????????# + T #????????? | | ?????????# # ! #????????? | | ?????????# # !! #????????? | | ?????##### # #????????? | | ?????# # """"" #????????? | | ?????# < # """"" #????????? | | ?????# == # """"" #????????? | | ?????####+#### #????????? | | ??????# ! ##########????????? | | ??????# T #?????????????????? | | ??????# #?????????????????? | | ??????# #?????????????????? | | ??????# #?????????????????? | | ??????# #?????????????????? | | ??##########/####??????????????? | | ??#! [ #??????????????? | | ??# ?##+#??????????? | | ??# ???# #??????????? | | ??# "T" ?????# #??????????? | | ??# """ ??????# #???????#### | | ??? ??????# ######### | | ????#+###+######## # # | | ????#[g@%[===^^[ o # # | | ????#==%*=k[ *=g # # | | ????#####=######## # # | | ?????####+###????# # # | | ?????# #????# # # | | ?????# #????# # # | | ?????# """ #????# + # | | ?????# """ #????# # #### | | ?????# """ #????# # + | | ?????# #????# ############ | | ?????####+####### #?????????# | | ??????# #?????????# | | ??????# #?????????# | | ?????####+####### #?????????# | | ?????# #??######?????????# | | ?????# """"" #?????????????????# | | ?????# """"" #?????????????????? | | ?????# """"" #?????????????????? | | ?????# #?????????????????? | | ?????#########?????????????????? | | | | | | | | | | | +----------------------------------------------------+ Best States ------------- Heat Dissipation 25 Energy Generation 10 Energy Capacity 250 Matter Stores 300 Matter Capacity 300 Sight Range 16 Terrain Scan Density 10 Evasion (%) 55 Item Schematics ----------------- None Robot Schematics ------------------ None Fabricated ------------ Nothing Repaired ---------- Nothing Studied --------- None Alien Tech Used ----------------- None Achievements -------------- None Challenges ------------ None Game ------ Seed MiniIonShell Manual? 0 Play Time 00:14:46 Cumulative 7.1 hours Start 2026.01.07 @ 02:03:11 End 2026.01.07 @ 02:13:54 Sessions 1 Manual Loads 0 Difficulty Rogue Special Mode None Game No. 6 Rogue 6 Adventurer 0 Explorer 0 Win Type - Total 0 Types 0/0/0/0/0/0/0/0/0/0 Lore% 4 Gallery% 13 Achievement% 11 Wizard Run 0 Options --------- Layout 1 ASCII 0 Keyboard 0 Movement Numpad Keybinds 0 Fullscreen 1 Font 24/Smallcaps Map View 50x35 Zoom Use 0% Tactical HUD 0 Map Filters NONE Filters NONE Steam 1 RUN: b61463a1-c48c-49d5-ac16-41b0f77f46b6